bitfinex-derivatives/quotes_BNBF0:USTF0_20250608
["timestamp","ask_amount","ask_price","bid_price","bid_amount"]
[1749342976606,1.06995826,650.12,649.45,0.402]
[1749342976906,1.06995826,650.11,649.45,0.402]
[1749342977106,1.06995826,650.1,649.45,0.402]
[1749342977401,1.06995826,650.09,649.45,0.402]
[1749342977606,0.26783756,649.94,649.46,0.742]
[1749342979104,0.813,650.21,649.46,0.742]
[1749342979307,1.07025075,650.2,649.46,0.742]
[1749342979507,0.26779531,649.83,649.46,0.742]
[1749342979707,1.07025075,650.18,649.46,0.742]
[1749342980008,1.07025075,650.17,649.46,0.742]
[1749342980207,1.07025075,650.16,649.46,0.742]
[1749342980509,1.07025075,650.15,649.46,0.742]
[1749342980809,1.07025075,650.14,649.46,0.742]
[1749342981008,1.07025075,650.13,649.46,0.742]
[1749342981203,1.07025075,650.12,649.46,0.742]
[1749342981505,1.07037011,650.11,649.46,0.742]
[1749342981708,1.07037011,650.1,649.46,0.742]
[1749342982008,1.07037011,650.09,649.46,0.742]
[1749342982209,1.07037011,650.08,649.46,0.742]
[1749342982404,1.07037011,650.07,649.46,0.742]
[1749342982604,1.07037011,650.06,649.46,0.742]
[1749342982804,1.07037011,650.05,649.46,0.742]
[1749342983103,1.07037011,650.04,649.46,0.742]
[1749342983304,1.07037011,650.03,649.46,0.742]
[1749342983505,1.07037011,650.02,649.46,0.742]
[1749342983705,1.07037011,650.01,649.46,0.742]
[1749342983905,1.07037011,650.0,649.46,0.742]
[1749342984104,1.23003071,650.2,649.46,0.742]
[1749342984105,0.26781592,649.88,649.46,0.742]
[1749342985108,1.06977805,650.17,649.46,0.742]
[1749342985404,0.2677984,649.78,649.46,0.742]
[1749342985605,1.06977805,650.15,649.46,0.742]
[1749342985806,1.06977805,650.14,649.46,0.742]
[1749342986002,1.06977805,650.13,649.46,0.742]
[1749342986208,1.06977805,650.12,649.46,0.742]
[1749342986405,1.06977805,650.11,649.46,0.742]
[1749342986603,0.26780355,649.97,649.46,0.742]
[1749342988109,1.14614903,650.22,649.46,0.742]
[1749342988303,1.07022734,650.21,649.46,0.742]
[1749342988605,0.26779428,649.85,649.46,0.742]
[1749342988805,1.07022734,650.19,649.46,0.742]
[1749342989009,1.07022734,650.18,649.46,0.742]
[1749342989209,1.07022734,650.17,649.46,0.742]
[1749342989408,1.07022734,650.16,649.46,0.742]
[1749342989605,0.2677984,650.01,649.46,0.742]
[1749342989809,1.07022734,650.0,649.46,0.742]
[1749342990007,1.07022734,649.99,649.46,0.742]
[1749342990209,1.07022734,649.98,649.46,0.742]
[1749342990409,1.07022734,649.97,649.46,0.742]
[1749342990606,1.07022734,649.96,649.46,0.742]
[1749342990813,1.07022734,649.95,649.46,0.742]
[1749342991016,0.2677984,650.01,649.46,0.742]
[1749342991215,1.06979489,650.0,649.46,0.742]
[1749342991415,0.2678221,649.83,649.46,0.742]
[1749342994219,1.14614903,650.15,649.46,0.742]
[1749342994420,0.26780149,649.74,649.46,0.742]
[1749342994617,1.0705202,650.13,649.46,0.742]
[1749342994817,1.0705202,650.12,649.46,0.742]
[1749342995021,1.0705202,650.11,649.46,0.742]
[1749342995221,1.0705202,650.1,649.46,0.742]
[1749342995419,1.0705202,650.09,649.46,0.742]
[1749342995623,0.26781385,649.95,649.46,0.742]
[1749342995821,1.0705202,649.94,649.46,0.742]
[1749342996124,1.0705202,649.93,649.46,0.742]
[1749342996325,1.0705202,649.92,649.46,0.742]
[1749342996520,1.0705202,649.91,649.46,0.742]
[1749342996724,1.0705202,649.9,649.46,0.742]
[1749342997023,1.0705202,649.89,649.46,0.742]
[1749342997222,1.0705202,649.88,649.46,0.742]
[1749342997520,1.0705202,649.87,649.46,0.742]
[1749342997823,1.0705202,649.86,649.46,0.742]
[1749342998122,1.2330407,650.11,649.46,0.742]
[1749342998322,1.07135432,650.1,649.46,0.742]
[1749342998524,0.26783962,649.77,649.46,0.742]
[1749342998723,1.23319716,650.11,649.46,0.742]
[1749342998924,1.07139643,650.1,649.47,0.402]
[1749342999223,1.07139643,650.09,649.47,0.402]
[1749342999524,1.07139643,650.08,649.47,0.402]
[1749342999722,1.07139643,650.07,649.47,0.402]
[1749342999920,0.26781695,649.93,649.47,0.402]
[1749343000125,1.07139643,649.92,649.47,0.402]
[1749343000323,1.07139643,649.91,649.47,0.402]
[1749343000522,1.07139643,649.9,649.47,0.402]
[1749343000827,1.07139643,649.89,649.47,0.402]
[1749343001024,1.07139643,649.88,649.47,0.402]
[1749343001225,1.07139643,649.87,649.47,0.402]
[1749343001424,1.07150485,649.86,649.47,0.402]
[1749343001728,0.26781695,649.93,649.47,0.402]
[1749343002023,1.07150273,649.92,649.47,0.402]
[1749343002228,1.07150273,649.91,649.47,0.402]
[1749343002523,1.07150273,649.9,649.47,0.402]
[1749343002722,1.07150273,649.89,649.47,0.402]
[1749343002926,1.07150273,649.88,649.47,0.402]
[1749343003126,1.07150273,649.87,649.47,0.402]
[1749343003323,1.07150273,649.86,649.47,0.402]
[1749343003528,0.26783756,649.78,649.47,0.402]
[1749343005527,0.26783756,649.78,649.5,2.3017953]
[1749343006329,1.14614903,650.05,649.5,2.3017953]
[1749343006530,0.26781592,649.72,649.5,2.3017953]
[1749343006730,0.26781592,649.72,649.48,2.3017953]
[1749343007028,1.14614903,650.06,649.48,2.3017953]
[1749343007233,1.07167631,650.05,649.48,2.3017953]
[1749343007429,1.07167631,650.04,649.48,2.3017953]
[1749343007732,0.26781798,649.91,649.48,2.3017953]
[1749343007934,1.07167631,649.9,649.48,2.3017953]
[1749343008129,1.07167631,649.89,649.48,2.3017953]
[1749343008327,1.07167631,649.88,649.49,2.3017953]
[1749343008527,1.07167631,649.87,649.49,3.3577953]
[1749343008831,0.26781798,649.91,649.49,3.3577953]
[1749343009130,1.0716961,649.9,649.49,3.3577953]
[1749343009332,1.0716961,649.89,649.49,3.3577953]
[1749343009628,0.26781592,649.81,649.49,3.3577953]
[1749343010131,0.26781592,649.81,649.49,1.056]
[1749343012130,1.14614903,650.1,649.51,2.3017953]
[1749343012334,1.07166961,650.09,649.51,2.3017953]
[1749343012629,1.07166961,650.08,649.51,2.3017953]
[1749343012833,1.07166961,650.07,649.51,2.3017953]
[1749343013130,1.07166961,650.06,649.49,1.056]
[1749343013335,1.07166961,650.05,649.49,1.056]
[1749343013535,1.07166961,650.04,649.49,1.056]
[1749343013733,0.26781592,649.92,649.49,1.056]
[1749343013937,1.07166961,649.91,649.49,1.056]
[1749343014133,1.07166961,649.9,649.49,1.056]
[1749343014334,0.26781592,649.92,649.49,1.056]
[1749343014535,1.07180202,649.91,649.49,1.056]
[1749343014733,1.07180202,649.9,649.49,1.056]
[1749343015034,0.26781592,649.92,649.49,1.056]
[1749343015237,1.07186639,649.91,649.49,1.056]
[1749343015532,1.07186639,649.9,649.49,1.056]
[1749343015737,0.26781592,649.92,649.49,1.056]
[1749343015934,1.07188956,649.91,649.49,1.056]
[1749343016134,1.07188956,649.9,649.49,1.056]
[1749343016340,0.26781592,649.92,649.49,1.056]
[1749343016538,1.07189824,649.91,649.49,1.056]
[1749343016737,1.07189824,649.9,649.49,1.056]
[1749343016937,0.26781592,649.92,649.49,3.3577953]
[1749343017137,1.07189823,649.91,649.49,3.3577953]
[1749343017435,1.07189823,649.9,649.49,3.3577953]
[1749343017639,0.26781592,649.92,649.49,3.3577953]
[1749343017839,1.072,649.91,649.49,3.3577953]
[1749343018039,1.072,649.9,649.49,3.3577953]
[1749343018339,0.26783137,649.81,649.49,3.3577953]
[1749343019039,0.26783137,649.81,649.5,0.402]
[1749343019939,0.26783137,649.81,649.5,2.7037953]
[1749343021141,1.236424,650.09,649.51,2.3017953]
[1749343021337,1.52998444,650.22,649.5,0.402]
[1749343021338,1.07204783,650.08,649.53,2.3017953]
[1749343021541,2.38257699,650.1,649.53,2.3017953]
[1749343021542,0.26781076,649.74,649.53,2.3017953]
[1749343021742,1.07204783,650.06,649.53,2.3017953]
[1749343022040,1.07204783,650.06,649.5,0.402]
[1749343022041,1.07204783,650.05,649.5,0.402]
[1749343022239,1.07204783,650.04,649.5,0.402]
[1749343022437,1.14614903,650.06,649.5,0.402]
[1749343022438,1.07204783,650.03,649.5,0.402]
[1749343022640,0.26781695,649.92,649.5,0.402]
[1749343022839,1.07204783,649.91,649.5,0.402]
[1749343023039,1.07204783,649.9,649.5,2.7037953]
[1749343023242,1.07204783,649.89,649.5,2.7037953]
[1749343023539,1.07204783,649.88,649.5,2.7037953]
[1749343023743,1.07204783,649.87,649.5,2.7037953]
[1749343023942,0.26781695,649.92,649.5,2.7037953]
[1749343024243,1.07219751,649.91,649.5,2.7037953]
[1749343024442,0.26781592,649.82,649.5,2.7037953]
[1749343026444,0.26781592,649.82,649.51,2.3017953]
[1749343027242,1.14614903,650.05,649.51,2.3017953]
[1749343027446,0.26781488,649.75,649.51,2.3017953]
[1749343027743,1.14614903,650.05,649.51,2.3017953]
[1749343028046,1.07226544,650.04,649.51,2.3017953]
[1749343028342,1.07226544,650.03,649.51,2.3017953]
[1749343028646,0.26781592,649.91,649.51,2.3017953]
[1749343028945,1.07226544,649.9,649.51,2.3017953]
[1749343029146,1.07226544,649.89,649.51,2.3017953]
[1749343029342,1.07226544,649.88,649.51,2.3017953]
[1749343029544,1.07226544,649.87,649.51,2.3017953]
[1749343029748,1.07226544,649.86,649.51,2.3017953]
[1749343029944,0.26781592,649.91,649.51,2.3017953]
[1749343030242,1.07233446,649.9,649.51,2.3017953]
[1749343030543,0.26781488,649.82,649.51,2.3017953]
[1749343031145,0.26781488,649.82,649.52,0.927]
[1749343033246,1.14614903,650.05,649.52,0.927]
[1749343033444,1.07230816,650.04,649.52,0.927]
[1749343033642,1.14614903,650.05,649.52,0.927]
[1749343033643,1.07230816,650.03,649.52,0.927]
[1749343033947,1.07230816,650.02,649.52,0.927]
[1749343034245,1.07230816,650.01,649.52,0.927]
[1749343034444,1.07230816,650.0,649.52,0.927]
[1749343034644,0.26781695,649.9,649.52,0.927]
[1749343034847,1.07230816,649.89,649.52,0.927]
[1749343035043,1.07230816,649.88,649.52,0.927]
[1749343035246,1.07230816,649.87,649.52,0.927]
[1749343035445,1.07230816,649.86,649.52,0.927]
[1749343035644,0.26781695,649.9,649.52,0.927]
[1749343035848,1.07228902,649.89,649.52,0.927]
[1749343036144,1.07228902,649.88,649.52,0.927]
[1749343036346,1.07228902,649.87,649.52,0.927]
[1749343036646,0.26783034,649.8,649.53,0.402]
[1749343039250,2.38197336,650.05,649.53,0.402]
[1749343039450,0.26781385,649.74,649.53,0.402]
[1749343039648,1.14614903,650.05,649.53,0.402]
[1749343039849,1.07237243,650.04,649.53,0.402]
[1749343040047,1.07237243,650.03,649.53,0.402]
[1749343040248,1.07237243,650.02,649.53,0.402]
[1749343040452,1.07237243,650.01,649.53,0.402]
[1749343040753,0.26781592,649.91,649.53,0.402]
[1749343040950,1.07237243,649.9,649.53,0.402]
[1749343041154,1.07237243,649.89,649.53,0.402]
[1749343041453,1.07237243,649.88,649.53,0.402]
[1749343041750,1.07237243,649.87,649.53,0.402]
[1749343041953,1.07237243,649.86,649.53,0.402]
[1749343042148,1.07237243,649.85,649.53,0.402]
[1749343042353,0.891,649.9,649.53,0.402]
[1749343042555,0.26783344,649.78,649.53,0.402]
[1749343045253,0.891,649.9,649.53,0.402]
[1749343045453,1.07241964,649.89,649.53,0.402]
[1749343045651,0.26782931,649.72,649.53,0.402]
[1749343045851,0.891,649.9,649.53,0.402]
[1749343046051,1.07241862,649.89,649.53,0.402]
[1749343046251,1.07241862,649.88,649.53,0.402]
[1749343046453,1.07241862,649.87,649.53,0.402]
[1749343046654,0.26783034,649.81,649.53,0.402]
[1749343048155,0.891,649.9,649.53,0.402]
[1749343048455,1.0723076,649.89,649.53,0.402]
[1749343048652,1.0723076,649.88,649.53,0.402]
[1749343048858,1.0723076,649.87,649.53,0.402]
[1749343049155,1.0723076,649.86,649.53,0.402]
[1749343049353,0.891,649.9,649.53,0.402]
[1749343049354,1.0723076,649.85,649.53,0.402]
[1749343049554,0.26784374,649.78,649.53,0.402]
[1749343050955,1.07217766,649.77,649.53,0.402]
[1749343051158,0.891,649.9,649.53,0.402]
[1749343051458,0.2678592,649.72,649.53,0.402]
[1749343051658,0.891,649.9,649.53,0.402]
[1749343051863,1.07192422,649.89,649.53,0.402]
[1749343052061,1.07192422,649.88,649.53,0.402]
[1749343052257,1.07192422,649.87,649.53,0.402]
[1749343052562,0.26784787,649.8,649.53,0.402]
[1749343052759,1.07192422,649.79,649.53,0.402]
[1749343052959,1.07192422,649.78,649.53,0.402]
[1749343053163,0.26784787,649.8,649.53,0.402]
[1749343053464,1.07161816,649.79,649.53,0.402]
[1749343053657,1.07161816,649.78,649.53,0.402]
[1749343053862,0.26784787,649.8,649.53,0.402]
[1749343054060,1.07133138,649.79,649.53,0.402]
[1749343054363,1.07133138,649.78,649.53,0.402]
[1749343054560,0.2678458,649.74,649.53,0.402]
[1749343057262,0.891,649.9,649.53,0.402]
[1749343057462,1.07095975,649.89,649.53,0.402]
[1749343057666,0.891,649.9,649.53,0.402]
[1749343057667,1.07095975,649.88,649.53,0.402]
[1749343057863,1.07095975,649.87,649.53,0.402]
[1749343058166,1.07095975,649.86,649.53,0.402]
[1749343058361,1.07095975,649.85,649.53,0.402]
[1749343058666,0.26784993,649.78,649.53,0.402]
[1749343059565,0.26784993,649.78,649.52,0.927]
[1749343060362,0.26784993,649.78,649.25,2.3017953]
[1749343060561,0.26784993,649.78,649.38,2.3017953]
[1749343061866,0.26784993,649.78,649.39,0.402]
[1749343062166,0.26784993,649.78,649.44,2.3017953]
[1749343063168,0.26784993,649.78,649.45,1.092]
[1749343063367,1.07052096,649.89,649.45,1.092]
[1749343063564,0.891,649.9,649.45,1.092]
[1749343063565,0.26785714,649.7,649.45,1.092]
[1749343063764,1.07044107,649.89,649.45,1.092]
[1749343063968,0.891,649.9,649.45,1.092]
[1749343064166,1.07044473,649.89,649.45,1.092]
[1749343064366,0.891,649.9,649.45,1.092]
[1749343064570,1.0703928,649.89,649.45,1.092]
[1749343064770,0.26785817,649.79,649.45,1.092]
[1749343066273,1.07035168,649.89,649.45,1.092]
[1749343066470,0.891,649.9,649.45,1.092]
[1749343066673,1.07030964,649.89,649.45,1.092]
[1749343066970,0.891,649.9,649.45,1.092]
[1749343067473,1.07030134,649.89,649.45,1.092]
[1749343067670,0.26786951,649.79,649.45,1.092]
[1749343069276,0.891,649.9,649.45,1.092]
[1749343069475,1.08173941,649.89,649.45,1.092]
[1749343069672,1.08173941,649.88,649.45,1.092]
[1749343069871,1.08173941,649.87,649.45,1.092]
[1749343070074,1.08173941,649.86,649.45,1.092]
[1749343070373,0.2678891,649.77,649.45,1.092]
[1749343072077,1.08106536,649.76,649.45,1.092]
[1749343072277,1.08106536,649.75,649.45,1.092]
[1749343072479,0.26790045,649.69,649.45,1.092]
[1749343075175,0.891,649.9,649.45,1.092]
[1749343075374,1.07842726,649.89,649.45,1.092]
[1749343075580,0.26788601,649.64,649.45,1.092]
[1749343075776,1.07842726,649.87,649.45,1.092]
[1749343075981,1.07842726,649.86,649.45,1.092]
[1749343076181,1.07842726,649.85,649.45,1.092]
[1749343076382,1.07842726,649.84,649.45,1.092]
[1749343076680,0.26789117,649.76,649.45,1.092]
[1749343076879,1.07842726,649.75,649.45,1.092]
[1749343077080,0.26789117,649.76,649.45,1.092]
[1749343078082,1.07813504,649.75,649.45,1.092]
[1749343078281,0.891,649.9,649.45,1.092]
[1749343078480,1.07802376,649.89,649.45,1.092]
[1749343078679,1.07802376,649.88,649.45,1.092]
[1749343078877,1.07802376,649.87,649.45,1.092]
[1749343079078,1.07802376,649.86,649.45,1.092]
[1749343079281,0.891,649.9,649.45,1.092]
[1749343079282,1.07802376,649.85,649.45,1.092]
[1749343079577,1.07802376,649.84,649.45,1.092]
[1749343079779,0.26789117,649.76,649.45,1.092]
[1749343081079,1.07767636,649.75,649.45,1.092]
[1749343081286,1.07767636,649.74,649.45,1.092]
[1749343081487,0.26792004,649.68,649.45,1.092]
[1749343081783,1.07767636,649.67,649.45,1.092]
[1749343081983,1.07767636,649.66,649.45,1.092]
[1749343082186,0.26792004,649.68,649.45,1.092]
[1749343082187,1.07767636,649.65,649.45,1.092]
[1749343082388,1.07767636,649.64,649.45,1.092]
[1749343082686,1.07767636,649.63,649.45,1.092]
[1749343082886,1.07728176,649.62,649.45,1.092]
[1749343083191,0.26792004,649.68,649.45,1.092]
[1749343083392,1.07698336,649.67,649.45,1.092]
[1749343083591,1.07698336,649.66,649.45,1.092]
[1749343083791,0.26792004,649.68,649.45,1.092]
[1749343083792,1.07698336,649.65,649.45,1.092]
[1749343083992,1.07698336,649.64,649.45,1.092]
[1749343084293,1.07698336,649.63,649.45,1.092]
[1749343084592,0.26793242,649.59,649.45,1.092]
[1749343087192,2.17084186,649.97,649.45,1.092]
[1749343087392,1.38387873,649.96,649.45,1.092]
[1749343087592,1.38388346,649.95,649.45,1.092]
[1749343087892,0.26789838,649.84,649.46,0.402]
[1749343088091,1.07616749,649.83,649.46,0.402]
[1749343088292,1.07616749,649.82,649.46,0.402]
[1749343088592,1.07616749,649.81,649.46,0.402]
[1749343088795,1.07616749,649.8,649.46,0.402]
[1749343088997,1.07616749,649.79,649.46,0.402]
[1749343089293,1.07616749,649.78,649.46,0.402]
[1749343089593,1.07616749,649.77,649.46,0.402]
[1749343089893,1.07616749,649.76,649.46,0.402]
[1749343090098,1.07616749,649.75,649.46,0.402]
[1749343090294,1.07616749,649.74,649.46,0.402]
[1749343090500,1.07616749,649.73,649.46,0.402]
[1749343090696,1.07616749,649.72,649.46,0.402]
[1749343090897,1.07616749,649.71,649.46,0.402]
[1749343091097,0.2679221,649.67,649.46,0.402]
[1749343093196,1.07607615,649.85,649.46,0.402]
[1749343093396,1.07607615,649.84,649.46,0.402]
[1749343093599,0.2679087,649.62,649.46,0.402]
[1749343093794,1.07607615,649.82,649.46,0.402]
[1749343094001,1.07607615,649.81,649.46,0.402]
[1749343094296,1.07607615,649.8,649.46,0.402]
[1749343094495,1.07607615,649.79,649.46,0.402]
[1749343094695,1.07607615,649.78,649.46,0.402]
[1749343094899,0.26801805,649.71,649.46,0.402]
[1749343095196,1.07607615,649.7,649.46,0.402]
[1749343095401,1.07607615,649.69,649.46,0.402]
[1749343095598,1.07607615,649.68,649.46,0.402]
[1749343095795,0.26801805,649.71,649.46,0.402]
[1749343096000,1.07534868,649.7,649.46,0.402]
[1749343096198,1.07534868,649.69,649.46,0.402]
[1749343096398,0.26802734,649.65,649.46,0.402]
[1749343097197,0.26802734,649.65,649.47,0.806]
[1749343099201,1.07538273,649.82,649.47,0.806]
[1749343099404,0.26790973,649.61,649.47,0.806]
[1749343099801,1.07538273,649.79,649.47,0.806]
[1749343100000,1.07538273,649.78,649.47,0.806]
[1749343100199,1.07538273,649.77,649.47,0.806]
[1749343100400,1.07538273,649.76,649.47,0.806]
[1749343100704,1.22741429,649.91,649.47,0.806]
[1749343100705,1.07538273,649.75,649.47,0.806]
[1749343101005,0.26791695,649.69,649.47,0.806]
[1749343101301,1.07538273,649.68,649.47,0.806]
[1749343101501,0.26791695,649.69,649.47,0.806]
[1749343101704,1.07557559,649.68,649.47,0.806]
[1749343101903,0.26791695,649.69,649.47,0.806]
[1749343102101,1.07555613,649.68,649.47,0.806]
[1749343102306,1.53523532,649.94,649.47,0.806]
[1749343102506,1.38333303,649.93,649.47,0.806]
[1749343102809,1.38333777,649.92,649.47,0.806]
[1749343103002,1.3833425,649.91,649.47,0.806]
[1749343103202,1.38334724,649.9,649.47,0.806]
[1749343103503,1.38335197,649.89,649.47,0.806]
[1749343103702,0.26790251,649.8,649.47,0.806]
[1749343103904,1.07560759,649.79,649.47,0.806]
[1749343104102,0.26790251,649.8,649.47,0.806]
[1749343104103,1.07560759,649.78,649.47,0.806]
[1749343104307,1.07560759,649.77,649.47,0.806]
[1749343104508,1.07560759,649.76,649.47,0.806]
[1749343104709,1.07560759,649.75,649.47,0.806]
[1749343104905,1.07560759,649.74,649.47,0.806]
[1749343105109,1.07560759,649.73,649.47,0.806]
[1749343105409,1.07560759,649.72,649.47,0.806]
[1749343105604,1.07560759,649.71,649.47,0.806]
[1749343105805,1.07560759,649.7,649.47,0.806]
[1749343106010,1.07560759,649.69,649.47,0.806]
[1749343106208,0.26790251,649.8,649.47,0.806]
[1749343106407,1.07578335,649.79,649.47,0.806]
[1749343106611,1.07578335,649.78,649.47,0.806]
[1749343106812,1.07578335,649.77,649.47,0.806]
[1749343107012,1.07578335,649.76,649.47,0.806]
[1749343107308,1.07578335,649.75,649.47,0.806]
[1749343107611,1.07578335,649.74,649.47,0.806]
[1749343107809,1.07578335,649.73,649.47,0.806]
[1749343108008,1.07578335,649.72,649.47,0.806]
[1749343108212,1.07578335,649.71,649.47,0.806]
[1749343108411,1.07578335,649.7,649.47,0.806]
[1749343108611,1.07578335,649.69,649.47,0.806]
[1749343108812,1.07578335,649.68,649.47,0.806]
[1749343109013,0.30774912,649.88,649.47,0.806]
[1749343109310,1.07601787,649.87,649.47,0.806]
[1749343109508,1.07601787,649.86,649.47,0.806]
[1749343109712,0.26789941,649.78,649.47,0.806]
[1749343109910,1.07601787,649.77,649.47,0.806]
[1749343110113,0.26789941,649.78,649.47,0.806]
[1749343110114,1.07601787,649.76,649.47,0.806]
[1749343110314,1.07601787,649.75,649.47,0.806]
[1749343110610,1.07601787,649.74,649.47,0.806]
[1749343110809,1.07601787,649.73,649.47,0.806]
[1749343111015,1.07601787,649.72,649.47,0.806]
[1749343111214,1.07601787,649.71,649.47,0.806]
[1749343111411,1.07601787,649.7,649.47,0.806]
[1749343111611,0.26792107,649.66,649.47,0.806]
[1749343112512,1.07630392,649.65,649.47,0.806]
[1749343112714,1.07630392,649.64,649.47,0.806]
[1749343113018,0.26792107,649.66,649.47,0.806]
[1749343113019,1.07630392,649.63,649.47,0.806]
[1749343113219,1.07630392,649.62,649.47,0.806]
[1749343113413,0.26792107,649.66,649.47,0.806]
[1749343113615,1.07631127,649.65,649.47,0.806]
[1749343113815,1.07631127,649.64,649.47,0.806]
[1749343114012,1.07631127,649.63,649.47,0.806]
[1749343114218,1.07631127,649.62,649.47,0.806]
[1749343114415,1.07631127,649.61,649.47,0.806]
[1749343114615,1.14375255,649.84,649.47,0.806]
[1749343114816,1.38404975,649.83,649.47,0.806]
[1749343115013,1.38405448,649.82,649.47,0.806]
[1749343115211,1.14375255,649.84,649.47,0.806]
[1749343115212,1.38405922,649.81,649.47,0.806]
[1749343115415,1.38406396,649.8,649.47,0.806]
[1749343115713,0.26792726,649.74,649.47,0.806]
[1749343115915,1.07627695,649.73,649.47,0.806]
[1749343116118,1.07627695,649.72,649.47,0.806]
[1749343116319,1.07627695,649.71,649.47,0.806]
[1749343116517,1.07627695,649.7,649.47,0.806]
[1749343116717,1.07627695,649.69,649.47,0.806]
[1749343116917,1.07627695,649.68,649.47,0.806]
[1749343117116,1.07627695,649.67,649.47,0.806]
[1749343117318,0.30779174,649.79,649.47,0.806]
[1749343117319,1.07627695,649.66,649.47,0.806]
[1749343117519,0.2679417,649.63,649.47,0.806]
[1749343117823,1.07627695,649.62,649.47,0.806]
[1749343118022,1.07627695,649.61,649.47,0.806]
[1749343118317,1.07627695,649.6,649.47,0.806]
[1749343118618,1.07627695,649.59,649.47,0.806]
[1749343118922,0.2679417,649.63,649.47,0.806]
[1749343119122,1.07628174,649.62,649.47,0.806]
[1749343119417,0.2679417,649.63,648.38,0.2679417]
[1749343119418,1.07628174,649.61,648.38,0.2679417]
[1749343119618,1.07628174,649.6,648.39,0.30845633]
[1749343119818,1.07628174,649.59,648.39,0.30845633]
[1749343120019,1.07628174,649.58,648.39,0.30845633]
[1749343120218,0.30779174,649.79,648.39,0.30845633]
[1749343120423,1.07647271,649.78,648.39,0.30845633]
[1749343120720,1.38427393,649.77,648.39,0.30845633]
[1749343120924,1.07647271,649.76,648.39,0.30845633]
[1749343121125,1.07647271,649.75,648.39,0.30845633]
[1749343121321,1.07647271,649.74,648.4,0.403]
[1749343121520,1.07647271,649.73,648.41,0.30844681]
[1749343121724,0.26805418,649.42,648.41,0.30844681]
[1749343122422,0.26805418,649.42,648.45,3.83742239]
[1749343123324,1.07647271,649.65,648.46,0.814]
[1749343123521,1.07647271,649.64,648.46,0.814]
[1749343123820,1.07647271,649.63,648.46,0.814]
[1749343124024,1.07647271,649.62,648.46,0.814]
[1749343124221,1.07647271,649.61,648.46,0.814]
[1749343124423,1.07647271,649.6,648.46,0.814]
[1749343124621,0.26805625,649.34,648.46,0.814]
[1749343124825,0.26805625,649.34,648.46,4.65142239]
[1749343125227,0.26805625,649.34,648.57,3.83742239]
[1749343125623,0.26805625,649.34,648.58,3.83742239]
[1749343126326,1.07825706,649.7,648.58,3.83742239]
[1749343126530,0.26803354,649.17,648.58,3.83742239]
[1749343126728,1.07825706,649.68,648.58,3.83742239]
[1749343126928,1.07825706,649.67,648.58,3.83742239]
[1749343127229,1.07825706,649.66,648.58,3.83742239]
[1749343127429,1.07825706,649.65,648.59,3.83742239]
[1749343127627,0.2680387,649.4,648.59,3.83742239]
[1749343129330,1.07825706,649.56,648.59,3.83742239]
[1749343129627,0.26804695,649.2,648.6,3.83742239]
[1749343129828,1.07825706,649.54,648.6,3.83742239]
[1749343130032,1.14375255,649.73,648.6,3.83742239]
[1749343130327,1.07891889,649.72,648.6,3.83742239]
[1749343130532,1.07891889,649.71,648.6,3.83742239]
[1749343130732,0.26803044,649.45,648.6,3.83742239]
[1749343132330,0.30780122,649.77,648.76,3.83742239]
[1749343133531,0.998,649.76,648.76,3.83742239]
[1749343133832,0.26800257,649.52,648.77,3.83742239]
[1749343134336,0.26800257,649.52,648.72,3.83742239]
[1749343134536,0.26800257,649.52,648.73,3.83742239]
[1749343135334,2.07691889,649.76,648.73,3.83742239]
[1749343135637,0.26801392,649.33,648.76,3.83742239]
[1749343135834,2.07691889,649.76,648.76,3.83742239]
[1749343136238,1.07891889,649.75,648.76,3.83742239]
[1749343136435,1.07891889,649.75,648.77,3.83742239]
[1749343136633,0.26801083,649.52,648.77,3.83742239]